fUST/lending_fUST_20250702
["ID","MTS","AMOUNT","RATE_DAILY","PERIOD"]
[368967933,1751416246967,-507.88,0.00022426,2]
[368967934,1751416246976,-460.0,0.00022429,2]
[368967935,1751416246985,-460.0,0.00022436,2]
[368967936,1751416246994,-159.645859,0.00022505,2]
[368967937,1751416247004,-585.73271327,0.0002259,7]
[368967938,1751416247014,-176.192718,0.00022603,2]
[368967939,1751416247023,-460.0,0.000227,2]
[368967940,1751416247033,-460.0,0.000227,2]
[368967941,1751416247043,-947.37,0.000227,2]
[368967942,1751416247052,-507.88,0.000227,2]
[368967943,1751416247062,-500.02999999,0.00022703,2]
[368967944,1751416247071,-460.0,0.0002271,2]
[368967945,1751416247080,-585.73271327,0.00022866,8]
[368967946,1751416247090,-590.57,0.00022974,2]
[368967947,1751416247101,-460.0,0.00022974,2]
[368967948,1751416247110,-947.37,0.00022974,2]
[368967949,1751416247120,-507.88,0.00022974,2]
[368967950,1751416247130,-411.65,0.00022984,2]
[368967951,1751416247139,-160.0,0.00023,3]
[368967952,1751416247149,-168.0,0.00023097,2]
[368967953,1751416247158,-585.73271327,0.00023141,8]
[368967954,1751416247169,-168.0,0.00023154,2]
[368967955,1751416247178,-416.69069272,0.00023231,2]
[368967956,1751416247188,-168.0,0.00023244,2]
[368967957,1751416247197,-460.0,0.00023248,2]
[368967958,1751416247207,-947.37,0.00023248,2]
[368967959,1751416247216,-507.88,0.00023248,2]
[368967960,1751416247226,-215.0738,0.00023295,2]
[368967961,1751416247235,-585.73271327,0.00023417,9]
[368967962,1751416247244,-291.61,0.00023522,2]
[368967963,1751416247254,-947.54109821,0.00023522,2]
[368967964,1751416247264,-507.92,0.00023522,2]
[368967965,1751416247273,-585.73271327,0.00023693,9]
[368967966,1751416247282,-537.84657639,0.00023829,2]
[368967967,1751416247292,-771.60558772,0.00023888,2]
[368967968,1751416247302,-1227.21934167,0.000239,2]
[368967969,1751416247312,-537.84657639,0.00023929,2]
[368967970,1751416247321,-585.73271327,0.00023969,10]
[368967971,1751416247331,-441.21,0.00024,7]
[368967972,1751416247340,-9641.88,0.00024,2]
[368967973,1751416247350,-524.61914904,0.00024,3]
[368967974,1751416247359,-524.61914904,0.00024,3]
[368967975,1751416247368,-331.70266884,0.00024,14]
[368967976,1751416247378,-537.84657639,0.00024029,2]
[368967977,1751416247390,-537.84657639,0.00024129,2]
[368967978,1751416247399,-577.38,0.000242,7]
[368967979,1751416247408,-4193.74,0.000242,7]
[368967980,1751416247418,-160.0,0.000242,7]
[368967981,1751416247429,-837.20943635,0.000242,7]
[368967982,1751416247438,-215.01728679,0.000242,7]
[368967983,1751416247447,-230.32585361,0.000242,7]
[368967984,1751416247460,-537.84657639,0.00024229,2]
[368967985,1751416247470,-585.73271327,0.00024245,10]
[368967986,1751416247479,-406.0,0.00024255,2]
[368967987,1751416247489,-537.84657639,0.00024329,2]
[368967988,1751416247499,-537.84657639,0.00024429,2]
[368967989,1751416247509,-585.02,0.000245,2]
[368967990,1751416247518,-585.73271327,0.00024521,11]
[368967991,1751416247527,-537.84657639,0.00024529,2]
[368967992,1751416247537,-5000.0,0.000246,32]
[368967993,1751416247546,-537.84657639,0.00024629,2]
[368967994,1751416247556,-300.0,0.00024657,4]
[368967995,1751416247565,-621.997654,0.0002466,4]
[368967996,1751416247574,-223.0315306,0.00024664,2]
[368967997,1751416247584,-537.84657639,0.00024729,2]
[368967998,1751416247593,-585.73271327,0.00024797,11]
[368967999,1751416247602,-150.0,0.000248,5]
[368968000,1751416247611,-325.04188239,0.000248,2]
[368968001,1751416247620,-642.0,0.000248,2]
[368968002,1751416247630,-537.84657639,0.00024829,2]
[368968003,1751416247639,-3632.481557,0.00024829,2]
[368968004,1751416247648,-3632.48155699,0.00024857,2]
[368968005,1751416247658,-920.0,0.00024876,2]
[368968006,1751416247669,-3632.48155699,0.00024886,2]
[368968007,1751416247679,-121251.50601,0.00024899,7]
[368968008,1751416247688,-152.252602,0.000249,7]
[368968009,1751416247698,-151.0,0.000249,7]
[368968010,1751416247707,-151.0,0.000249,7]
[368968011,1751416247718,-151.0,0.000249,7]
[368968012,1751416247728,-236.553881,0.000249,7]
[368968013,1751416247738,-236.553881,0.000249,7]
[368968014,1751416247747,-216.663774,0.000249,7]
[368968015,1751416247758,-349.762062,0.000249,7]
[368968016,1751416247770,-349.762062,0.000249,7]
[368968017,1751416247779,-1819.552179,0.000249,7]
[368968018,1751416247790,-151.0,0.000249,7]
[368968019,1751416247800,-1819.552179,0.000249,7]
[368968020,1751416247810,-151.0,0.000249,2]
[368968021,1751416247820,-151.0,0.000249,7]
[368968022,1751416247830,-510.190369,0.000249,7]
[368968023,1751416247841,-151.0,0.000249,7]
[368968024,1751416247851,-510.190369,0.000249,7]
[368968025,1751416247861,-544809.87869744,0.000249,2]
[368968026,1751416247965,-9521.55214953,0.000249,2]
[368968027,1751416248033,-463.52741001,0.00017224,2]
[368968028,1751416248044,-160.0,0.00017226,2]
[368968029,1751416248053,-71381.14775711,0.000249,2]
[368968030,1751416248095,-4401.75780814,0.000249,2]
[368968031,1751416254042,151.6928624,6.9e-07,2]
[368968032,1751416254134,151.6928624,6.9e-07,2]
[368968033,1751416254232,151.6928624,6.9e-07,2]
[368968034,1751416254422,151.6928624,6.9e-07,2]
[368968035,1751416254528,151.6928624,6.9e-07,2]
[368968036,1751416254619,151.6928624,6.9e-07,2]
[368968037,1751416254733,151.6928624,6.9e-07,2]
[368968038,1751416254821,151.6928624,6.9e-07,2]
[368968039,1751416300088,173.7689477,0.0001622,2]
[368968040,1751416361594,272.09528149,0.00016699,2]
[368968041,1751416404122,2429.49201448,0.00016219,2]
[368968042,1751416404145,35045.48094042,0.00016219,2]
[368968043,1751416466522,382.09475249,0.00017046,2]
[368968044,1751416555478,151.69286236,6.9e-07,2]
[368968045,1751416565829,5797.155736,0.00016216,2]
[368968046,1751416573149,5000.0,0.000171,2]
[368968047,1751416581852,3623.57570873,0.00016218,2]
[368968048,1751416581878,10393.67241414,0.00016218,2]
[368968049,1751416581902,10882.75187713,0.00016218,2]
[368968050,1751416597215,150.001,0.00024658,120]
[368968051,1751416642759,1238.52062518,0.000168,2]
[368968052,1751416651081,2878.72749769,0.000168,2]
[368968053,1751416651106,2121.27250231,0.000168,2]
[368968054,1751416663079,175.145634,0.00016697,2]
[368968055,1751416663799,194.71104634,0.00016698,2]
[368968056,1751416686842,1099.217577,0.00016218,2]
[368968057,1751416710835,5000.0,0.000168,2]
[368968058,1751416726543,2279.54405632,0.000168,2]
[368968059,1751416776367,4130.10918403,0.000168,2]
[368968060,1751416776390,869.89081597,0.000168,2]
[368968061,1751416791599,2720.45594368,0.000168,2]
[368968062,1751416807304,2066.25786,0.00016214,2]
[368968063,1751416836161,5000.0,0.000168,2]
[368968064,1751416851381,4343.39538035,0.000168,2]
[368968065,1751416851404,656.60461965,0.000168,2]
[368968066,1751416890383,-386.07372647,0.00017114,2]
[368968067,1751416890407,-300.0,0.0001721,2]
[368968068,1751416890435,-1200.0,0.0001721,2]
[368968069,1751416890460,-300.0,0.00017211,2]
[368968070,1751416890482,-300.0,0.00017211,2]
[368968071,1751416890505,-1200.0,0.00017211,2]
[368968072,1751416890533,-300.0,0.00017211,2]
[368968073,1751416890563,-216.78,0.00017211,3]
[368968074,1751416890587,-650.34,0.00017211,3]
[368968075,1751416890615,-500.0,0.00017211,2]
[368968076,1751416890636,-500.0,0.00017211,2]
[368968077,1751416890660,-146.80627353,0.00017211,2]
[368968078,1751416896994,-152.09943122,0.00017039,2]
[368968079,1751416904393,-151.89712631,0.00017039,2]
[368968080,1751416908512,-189.95768716,0.00017039,2]
[368968081,1751416913502,-154.92603876,0.00017039,2]
[368968082,1751416916184,-169.24106211,0.00017039,2]
[368968083,1751416920054,-152.0,0.00017039,2]
[368968084,1751416925245,-152.70048686,0.00017039,2]
[368968085,1751416928097,-215.7231602,0.00017039,2]
[368968086,1751416932943,-175.73812141,0.00017039,2]
[368968087,1751416935096,-199.79247995,0.00017039,2]
[368968088,1751416941076,-206.03421299,0.00017039,2]
[368968089,1751416944321,-205.7632173,0.00017039,2]
[368968090,1751416949955,-329.66347564,0.00017039,2]
[368968091,1751416950698,200.0,0.0002398,120]
[368968092,1751416955381,-316.19229555,0.00017039,2]
[368968093,1751416958991,-271.9431591,0.00017039,2]
[368968094,1751416965993,-246.91886229,0.00017039,2]
[368968095,1751416970017,-197.99027078,0.00017039,2]
[368968096,1751416972706,-241.19631906,0.00017039,2]
[368968097,1751416975692,-300.0,0.00017039,2]
[368968098,1751416981303,-374.74750462,0.00017039,2]
[368968099,1751416982941,-178.53683612,0.00017039,2]
[368968100,1751416985886,-176.27815085,0.00017039,2]
[368968101,1751416991936,-156.16817681,0.00017039,2]
[368968102,1751416993576,-84.49192491,0.00017039,2]
[368968104,1751416999641,5000.0,0.000168,2]
[368968106,1751417030081,5000.0,0.000168,2]
[368968108,1751417133240,166.0,0.00016438,2]
[368968109,1751417148122,-337.81451067,0.0001711,2]
[368968110,1751417148143,-247.0,0.00017112,2]
[368968111,1751417148164,-293.59334174,0.00017112,2]
[368968112,1751417154092,-6.40665826,0.00017112,2]
[368968113,1751417154115,-300.0,0.00017112,2]
[368968114,1751417154136,-1200.0,0.00017112,2]
[368968115,1751417154156,-500.0,0.00017113,2]
[368968116,1751417154178,-432.58758734,0.00017113,2]
[368968117,1751417154200,-500.63386275,0.00017113,2]
[368968118,1751417154221,-500.0,0.00017113,2]
[368968119,1751417154245,-500.63386275,0.00017113,2]
[368968120,1751417154266,-500.0,0.00017113,2]
[368968121,1751417154291,-81.15127121,0.00017113,2]
[368968122,1751417164176,168.0,0.00017113,14]
[368968123,1751417165698,168.0,0.00017113,14]
[368968124,1751417184023,500.0,0.00025202,60]
[368968125,1751417184698,420.0,0.00025202,60]
[368968126,1751417227091,-300.0,0.00017111,2]
[368968127,1751417227115,-679.37695564,0.00017112,2]
[368968128,1751417239102,-520.62304436,0.00017112,2]
[368968129,1751417239130,-500.0,0.00017112,2]
[368968130,1751417239165,-500.0,0.00017112,2]
[368968131,1751417239191,-500.0,0.00017112,2]
[368968132,1751417239218,-500.0,0.00017112,2]
[368968133,1751417239247,-500.0,0.00017112,2]
[368968134,1751417239272,-500.0,0.00017112,2]
[368968135,1751417239302,-500.0,0.00017112,2]
[368968136,1751417239328,-500.0,0.00017112,2]
[368968137,1751417239354,-466.8635273,0.00017112,2]
[368968138,1751417239379,-220.42795755,0.00017112,2]
[368968139,1751417239403,-500.0,0.00017112,2]
[368968140,1751417239428,-500.0,0.00017112,2]
[368968141,1751417239454,-500.0,0.00017112,2]
[368968142,1751417239484,-500.0,0.00017112,2]
[368968143,1751417239510,-500.0,0.00017112,2]
[368968144,1751417239536,-380.26676938,0.00017112,2]
[368968145,1751417239566,-500.0,0.00017112,2]
[368968146,1751417239594,-500.0,0.00017112,2]
[368968147,1751417239622,-500.0,0.00017112,2]
[368968148,1751417239647,-213.99500295,0.00017112,2]
[368968149,1751417262623,4177.39538035,0.00016163,2]
[368968150,1751417262649,5822.60461965,0.00016163,2]
[368968151,1751417282959,5000.0,0.000168,2]
[368968157,1751417311546,200.0,0.00024477,120]
[368968158,1751417334647,228.5466811,0.00016138,2]
[368968159,1751417349109,-1747.31365406,0.00017111,2]
[368968160,1751417349130,-507.99154686,0.00017111,2]
[368968161,1751417349156,-500.0,0.00017111,2]
[368968162,1751417349178,-500.0,0.00017111,2]
[368968163,1751417349200,-500.0,0.00017111,2]
[368968164,1751417349223,-372.8436474,0.00017111,2]
[368968165,1751417349247,-500.0,0.00017111,2]
[368968166,1751417349271,-500.0,0.00017111,2]
[368968167,1751417349441,-500.0,0.00017111,2]
[368968168,1751417349462,-415.38192239,0.00017111,2]
[368968169,1751417349486,-500.0,0.00017111,2]
[368968170,1751417349506,-500.0,0.00017111,2]
[368968171,1751417349527,-500.0,0.00017111,2]
[368968172,1751417349547,-500.0,0.00017111,2]
[368968173,1751417349569,-500.0,0.00017111,2]
[368968174,1751417349590,-500.0,0.00017111,2]
[368968175,1751417349613,-500.0,0.00017111,2]
[368968176,1751417349633,-352.24959967,0.00017111,2]
[368968177,1751417349654,-500.0,0.00017111,2]
[368968178,1751417349675,-500.0,0.00017111,2]
[368968179,1751417349695,-500.0,0.00017111,2]
[368968180,1751417349715,-500.0,0.00017111,2]
[368968181,1751417349738,-500.0,0.00017111,2]
[368968182,1751417349762,-500.0,0.00017111,2]
[368968183,1751417349783,-500.0,0.00017111,2]
[368968184,1751417349807,-500.0,0.00017111,2]
[368968185,1751417349829,-500.0,0.00017111,2]
[368968186,1751417349851,-187.83988086,0.00017111,2]
[368968187,1751417349874,-500.0,0.00017111,2]
[368968188,1751417349898,-500.0,0.00017111,2]
[368968189,1751417349922,-500.0,0.00017111,2]
[368968190,1751417349943,-500.0,0.00017111,2]
[368968191,1751417349968,-500.0,0.00017111,2]
[368968192,1751417349989,-500.0,0.00017111,2]
[368968193,1751417350010,-500.0,0.00017111,2]
[368968194,1751417350029,-500.0,0.00017111,2]
[368968195,1751417350051,-500.0,0.00017111,2]
[368968196,1751417350072,-500.0,0.00017111,2]
[368968197,1751417350096,-500.0,0.00017111,2]
[368968198,1751417350120,-500.0,0.00017111,2]
[368968199,1751417350143,-500.0,0.00017111,2]
[368968200,1751417350166,-500.0,0.00017111,2]
[368968201,1751417350189,-500.0,0.00017111,2]
[368968202,1751417350210,-500.0,0.00017111,2]
[368968203,1751417350233,-500.0,0.00017111,2]
[368968204,1751417350254,-500.0,0.00017111,2]
[368968205,1751417350276,-500.0,0.00017111,2]
[368968206,1751417350299,-500.0,0.00017111,2]
[368968207,1751417350322,-500.0,0.00017111,2]
[368968208,1751417350344,-500.0,0.00017111,2]
[368968209,1751417350366,-500.0,0.00017111,2]
[368968210,1751417350388,-500.0,0.00017111,2]
[368968211,1751417350411,-500.0,0.00017111,2]
[368968212,1751417350433,-500.0,0.00017111,2]
[368968213,1751417350456,-500.0,0.00017111,2]
[368968214,1751417350478,-500.0,0.00017111,2]
[368968215,1751417350505,-500.0,0.00017111,2]
[368968216,1751417350530,-500.0,0.00017111,2]
[368968217,1751417350552,-500.0,0.00017111,2]
[368968218,1751417350577,-500.0,0.00017111,2]
[368968219,1751417350600,-500.0,0.00017111,2]
[368968220,1751417350623,-500.0,0.00017111,2]
[368968221,1751417350645,-500.0,0.00017111,2]
[368968222,1751417350667,-500.0,0.00017111,2]
[368968223,1751417350688,-500.0,0.00017111,2]
[368968224,1751417350709,-500.0,0.00017111,2]
[368968225,1751417350731,-500.0,0.00017111,2]
[368968226,1751417350757,-500.0,0.00017111,2]
[368968227,1751417350777,-388.6779182,0.00017111,2]
[368968228,1751417350799,-300.0,0.00017111,2]
[368968229,1751417350821,-500.0,0.00017111,2]
[368968230,1751417350843,-500.0,0.00017111,2]
[368968231,1751417350865,-500.0,0.00017111,2]
[368968232,1751417350887,-500.0,0.00017111,2]
[368968233,1751417350918,-500.0,0.00017111,2]
[368968234,1751417350946,-500.0,0.00017111,2]
[368968235,1751417350968,-500.0,0.00017111,2]
[368968236,1751417350990,-500.0,0.00017111,2]
[368968237,1751417351011,-500.0,0.00017111,2]
[368968238,1751417351035,-500.0,0.00017111,2]
[368968239,1751417351060,-500.0,0.00017111,2]
[368968240,1751417351083,-500.0,0.00017111,2]
[368968241,1751417351106,-500.0,0.00017111,2]
[368968242,1751417351130,-500.0,0.00017111,2]
[368968243,1751417351152,-500.0,0.00017111,2]
[368968244,1751417351174,-500.0,0.00017111,2]
[368968245,1751417351196,-500.0,0.00017111,2]
[368968246,1751417351217,-500.0,0.00017111,2]
[368968247,1751417351239,-500.0,0.00017111,2]
[368968248,1751417351261,-576.60822229,0.00017111,2]
[368968249,1751417351282,-500.0,0.00017111,2]
[368968250,1751417351304,-500.0,0.00017111,2]
[368968251,1751417351326,-500.0,0.00017111,2]
[368968252,1751417351347,-500.0,0.00017111,2]
[368968253,1751417351370,-500.0,0.00017111,2]
[368968254,1751417351393,-500.0,0.00017111,2]
[368968255,1751417351416,-500.0,0.00017111,2]
[368968256,1751417351442,-500.0,0.00017111,2]
[368968257,1751417351467,-500.0,0.00017111,2]
[368968258,1751417351491,-500.0,0.00017111,2]
[368968259,1751417351514,-500.0,0.00017111,2]
[368968260,1751417351537,-500.0,0.00017111,2]
[368968261,1751417351559,-500.0,0.00017111,2]
[368968262,1751417351582,-500.0,0.00017111,2]
[368968263,1751417351606,-500.0,0.00017111,2]
[368968264,1751417351629,-437.25090788,0.00017111,2]
[368968265,1751417351651,-500.0,0.00017111,2]
[368968266,1751417351673,-500.0,0.00017112,2]
[368968267,1751417351695,-421.51470053,0.00017112,2]
[368968268,1751417351721,-624.20714318,0.00017112,2]
[368968269,1751417351747,-500.0,0.00017112,2]
[368968270,1751417351902,-624.20714318,0.00017112,2]
[368968271,1751417351927,-500.0,0.00017112,2]
[368968272,1751417351950,-624.20714318,0.00017112,2]
[368968273,1751417351974,-624.20714318,0.00017112,2]
[368968274,1751417351997,-500.0,0.00017112,2]
[368968275,1751417352020,-624.20714318,0.00017112,2]
[368968276,1751417352041,-500.0,0.00017112,2]
[368968277,1751417352064,-624.20714318,0.00017112,2]
[368968278,1751417352087,-624.20714318,0.00017112,2]
[368968279,1751417352108,-392.39716327,0.00017112,2]
[368968280,1751417352130,-500.0,0.00017112,2]
[368968281,1751417352152,-624.20714318,0.00017112,2]
[368968282,1751417352174,-500.0,0.00017112,2]
[368968283,1751417352198,-624.20714318,0.00017112,2]
[368968284,1751417352218,-500.0,0.00017112,2]
[368968285,1751417352241,-624.20714318,0.00017112,2]
[368968286,1751417352264,-251.34428346,0.00017112,2]
[368968287,1751417352286,-624.20714318,0.00017112,2]
[368968288,1751417352307,-500.0,0.00017112,2]
[368968289,1751417352327,-500.0,0.00017112,2]
[368968290,1751417352349,-500.0,0.00017112,2]
[368968291,1751417352372,-624.20714318,0.00017112,2]
[368968292,1751417352394,-624.20714318,0.00017112,2]
[368968293,1751417352418,-624.20714318,0.00017112,2]
[368968294,1751417352440,-624.20714318,0.00017112,2]
[368968295,1751417352463,-624.20714318,0.00017112,2]
[368968296,1751417352485,-636.69128605,0.00017112,2]
[368968297,1751417352507,-636.69128605,0.00017112,2]
[368968298,1751417352528,-636.69128605,0.00017112,2]
[368968299,1751417352550,-636.69128605,0.00017112,2]
[368968300,1751417352572,-636.69128605,0.00017112,2]
[368968301,1751417352594,-636.69128605,0.00017112,2]
[368968302,1751417352616,-636.69128605,0.00017112,2]
[368968303,1751417352638,-636.69128605,0.00017112,2]
[368968304,1751417352660,-636.69128605,0.00017112,2]
[368968305,1751417352681,-636.69128605,0.00017112,2]
[368968306,1751417352702,-50000.0,0.00017113,2]
[368968307,1751417352724,-231238.05548406,0.00017114,2]
[368968308,1751417392211,583.4278489,0.00016163,2]
[368968309,1751417406096,3365.42085035,0.000168,2]
[368968310,1751417406121,1634.57914965,0.000168,2]
[368968359,1751417432069,-224.44204046,0.00017111,2]
[368968361,1751417432079,-500.0,0.00017111,2]
[368968363,1751417432088,-500.0,0.00017111,2]
[368968365,1751417432098,-500.0,0.00017111,2]
[368968367,1751417432107,-500.0,0.00017111,2]
[368968369,1751417432116,-500.0,0.00017111,2]
[368968371,1751417432125,-500.0,0.00017111,2]
[368968373,1751417432135,-500.0,0.00017111,2]
[368968375,1751417432145,-500.0,0.00017111,2]
[368968377,1751417432154,-42.13807235,0.00017111,2]
[368968379,1751417432166,-457.86192765,0.00017111,2]
[368968381,1751417432175,-500.0,0.00017111,2]
[368968383,1751417432185,-500.0,0.00017111,2]
[368968385,1751417432194,-500.0,0.00017111,2]
[368968387,1751417432203,-500.0,0.00017111,2]
[368968389,1751417432212,-243.35669927,0.00017111,2]
[368968391,1751417432223,-500.0,0.00017111,2]
[368968393,1751417432232,-276.0218188,0.00017111,2]
[368968396,1751417432243,-223.9781812,0.00017111,2]
[368968398,1751417432253,-469.71114443,0.00017111,2]
[368968401,1751417432272,-30.28885557,0.00017111,2]
[368968403,1751417432282,-195.0,0.00017113,2]
[368968405,1751417432291,-138761.94451594,0.00017114,2]
[368968407,1751417432301,-729.57,0.00017211,3]
[368968409,1751417432310,-364.78,0.00017211,3]
[368968411,1751417432319,-182.39,0.00017211,3]
[368968413,1751417432329,-547.2,0.00017211,3]
[368968415,1751417432338,-7040.71515383,0.00017213,2]
[368968417,1751417432348,-500.0,0.00017213,2]
[368968419,1751417432357,-288.76,0.00017213,2]
[368968421,1751417432366,-460.0,0.00017213,2]
[368968423,1751417432376,-461.18185454,0.00017213,2]
[368968425,1751417432385,-460.0,0.00017213,2]
[368968427,1751417432395,-460.0,0.00017213,2]
[368968429,1751417432404,-457.24295903,0.00017213,2]
[368968431,1751417432414,-460.0,0.00017213,2]
[368968433,1751417432424,-460.0,0.00017213,2]
[368968434,1751417432433,-460.0,0.00017213,2]
[368968436,1751417432443,-460.0,0.00017213,2]
[368968438,1751417432452,-465.96895477,0.00017213,2]
[368968440,1751417432461,-516.60157146,0.00017213,2]
[368968443,1751417432472,-460.0,0.00017213,2]
[368968445,1751417432481,-460.0,0.00017213,2]
[368968447,1751417432491,-432.51233644,0.00017213,2]
[368968449,1751417432500,-460.0,0.00017213,2]
[368968451,1751417432510,-460.0,0.00017213,2]
[368968453,1751417432519,-460.0,0.00017213,2]
[368968454,1751417432528,-460.0,0.00017213,2]
[368968456,1751417432537,-377.90766456,0.00017213,2]
[368968458,1751417432546,-460.0,0.00017213,2]
[368968460,1751417432556,-460.11611386,0.00017213,2]
[368968462,1751417432565,-460.0,0.00017213,2]
[368968464,1751417432574,-256.63810257,0.00017213,2]
[368968466,1751417432584,-460.0,0.00017213,2]
[368968468,1751417432593,-460.0,0.00017213,2]
[368968470,1751417432602,-514.4237266,0.00017213,2]
[368968472,1751417432612,-460.0,0.00017213,2]
[368968474,1751417432621,-500.0,0.00017213,2]
[368968476,1751417432631,-460.0,0.00017213,2]
[368968479,1751417432640,-460.0,0.00017213,2]
[368968480,1751417432649,-460.0,0.00017213,2]
[368968483,1751417432659,-460.0,0.00017213,2]
[368968485,1751417432668,-460.0,0.00017213,2]
[368968487,1751417432678,-460.0,0.00017213,2]
[368968489,1751417432687,-278.09639086,0.00017213,2]
[368968491,1751417432696,-460.0,0.00017213,2]
[368968493,1751417432706,-460.0,0.00017213,2]
[368968495,1751417432715,-460.0,0.00017213,2]
[368968497,1751417432725,-1366.21,0.00017213,2]
[368968499,1751417432734,-460.0,0.00017213,2]
[368968501,1751417432743,-460.0,0.00017213,2]
[368968503,1751417432753,-1111.51,0.00017213,2]
[368968505,1751417432763,-460.0,0.00017213,2]
[368968507,1751417432773,-460.0,0.00017213,2]
[368968509,1751417432787,-460.0,0.00017213,2]
[368968511,1751417432796,-460.0,0.00017213,2]
[368968513,1751417432806,-1121.51,0.00017213,2]
[368968515,1751417432815,-460.0,0.00017213,2]
[368968517,1751417432825,-460.0,0.00017213,2]
[368968519,1751417432834,-460.0,0.00017213,2]
[368968521,1751417432843,-460.0,0.00017213,2]
[368968523,1751417432855,-460.0,0.00017213,2]
[368968525,1751417432865,-460.0,0.00017213,2]
[368968527,1751417432875,-460.0,0.00017213,2]
[368968529,1751417432885,-460.0,0.00017213,2]
[368968531,1751417432894,-460.0,0.00017213,2]
[368968533,1751417432903,-648.19,0.00017213,2]
[368968535,1751417432913,-460.0,0.00017213,2]
[368968537,1751417432922,-460.0,0.00017213,2]
[368968539,1751417432931,-540.0,0.00017213,2]
[368968541,1751417432941,-460.0,0.00017213,2]
[368968543,1751417432950,-460.0,0.00017213,2]
[368968545,1751417432960,-460.0,0.00017213,2]
[368968547,1751417432970,-460.0,0.00017213,2]
[368968549,1751417432979,-460.0,0.00017213,2]
[368968551,1751417432989,-460.0,0.00017213,2]
[368968553,1751417432998,-460.0,0.00017213,2]
[368968555,1751417433007,-460.0,0.00017213,2]
[368968557,1751417433017,-674.46,0.00017213,2]
[368968559,1751417433026,-460.0,0.00017213,2]
[368968561,1751417433036,-460.0,0.00017213,2]
[368968563,1751417433045,-460.0,0.00017213,2]
[368968565,1751417433055,-460.0,0.00017213,2]
[368968567,1751417433065,-460.0,0.00017213,2]
[368968569,1751417433075,-170.85237125,0.00017213,2]
[368968571,1751417433084,-460.0,0.00017213,2]
[368968573,1751417433093,-460.0,0.00017213,2]
[368968575,1751417433103,-460.0,0.00017213,2]
[368968577,1751417433113,-460.0,0.00017213,2]
[368968580,1751417433123,-460.0,0.00017213,2]
[368968582,1751417433133,-460.0,0.00017213,2]
[368968583,1751417433143,-460.0,0.00017213,2]
[368968586,1751417433152,-876.6,0.00017213,2]
[368968588,1751417433162,-460.0,0.00017213,2]
[368968590,1751417433172,-460.0,0.00017213,2]
[368968591,1751417433181,-380.0,0.00017213,2]
[368968594,1751417433191,-460.0,0.00017213,2]
[368968595,1751417433201,-460.0,0.00017213,2]
[368968598,1751417433211,-460.0,0.00017213,2]
[368968599,1751417433220,-460.0,0.00017213,2]
[368968601,1751417433230,-460.0,0.00017213,2]
[368968604,1751417433241,-460.0,0.00017213,2]
[368968606,1751417433250,-460.0,0.00017213,2]
[368968608,1751417433260,-460.0,0.00017213,2]
[368968610,1751417433269,-460.0,0.00017213,2]
[368968611,1751417433279,-460.0,0.00017213,2]
[368968613,1751417433289,-408.9148632,0.00017213,2]
[368968616,1751417433299,-460.0,0.00017213,2]
[368968618,1751417433309,-460.0,0.00017213,2]
[368968619,1751417433319,-460.0,0.00017213,2]